bitfinex/quotes_BTCUSD_20250903
["timestamp","ask_amount","ask_price","bid_price","bid_amount"]
[1756886767146,0.00210674,111380.0,111370.0,0.9049601]
[1756886767372,0.00210674,111380.0,111370.0,0.7543601]
[1756886767572,0.00210674,111380.0,111370.0,0.8997801]
[1756886767747,0.00210674,111380.0,111370.0,0.9049601]
[1756886767945,0.00210674,111380.0,111370.0,0.7543601]
[1756886768175,0.00210674,111380.0,111370.0,0.9049601]
[1756886768321,0.00210674,111380.0,111370.0,0.9019601]
[1756886768537,0.00210674,111380.0,111370.0,0.9049601]
[1756886768950,0.00210674,111380.0,111370.0,0.9682401]
[1756886769153,0.00210674,111380.0,111370.0,0.9652401]
[1756886769575,0.00210674,111380.0,111370.0,0.9692401]
[1756886770858,0.00210674,111380.0,111370.0,0.54638326]
[1756886771096,0.00012674,111380.0,111370.0,0.9652401]
[1756886771512,0.00012674,111380.0,111370.0,0.9682401]
[1756886772123,0.00012674,111380.0,111370.0,0.9652401]
[1756886772335,0.00210674,111380.0,111370.0,0.9652401]
[1756886772685,0.00210674,111380.0,111370.0,0.9702401]
[1756886773492,0.00210674,111380.0,111370.0,0.8196401]
[1756886773856,0.00210674,111380.0,111370.0,0.9702801]
[1756886774503,0.00210674,111380.0,111370.0,0.8196401]
[1756886774932,0.00210674,111380.0,111370.0,0.54216326]
[1756886775130,0.00437674,111380.0,111370.0,0.9650201]
[1756886775337,0.00210674,111380.0,111370.0,0.9650201]
[1756886775582,0.00012674,111380.0,111370.0,0.9700201]
[1756886776027,0.00012674,111380.0,111370.0,0.9660201]
[1756886776249,0.00012674,111380.0,111370.0,0.9690201]
[1756886776672,0.00012674,111380.0,111370.0,0.9610201]
[1756886777106,0.00012674,111380.0,111370.0,0.9650201]
[1756886778376,0.00012674,111380.0,111370.0,0.9680201]
[1756886778922,0.00012674,111380.0,111370.0,0.9650201]
[1756886779125,0.00012674,111380.0,111370.0,0.9700201]
[1756886779338,0.00012674,111380.0,111370.0,1.03382951]
[1756886779545,0.00210674,111380.0,111370.0,0.54212326]
[1756886779771,0.00210674,111380.0,111370.0,0.39160326]
[1756886780009,0.00437674,111380.0,111370.0,0.54212326]
[1756886780174,0.00210674,111380.0,111370.0,0.54212326]
[1756886781740,0.00210674,111380.0,111370.0,0.54228326]
[1756886781917,0.00210674,111380.0,111370.0,0.39160326]
[1756886782127,0.00210674,111380.0,111370.0,0.54228326]
[1756886784264,0.00210674,111380.0,111370.0,0.54530326]
[1756886784669,0.00210674,111380.0,111370.0,0.54728326]
[1756886784871,0.00210674,111380.0,111370.0,0.54724326]
[1756886785755,0.00012674,111380.0,111370.0,0.54724326]
[1756886787431,0.00012674,111380.0,111370.0,1.03390951]
[1756886788933,0.00012674,111380.0,111370.0,0.9949001]
[1756886789150,0.00012674,111380.0,111370.0,1.07537464]
[1756886789364,0.00012674,111380.0,111370.0,0.9949001]
[1756886789573,0.00012674,111380.0,111370.0,0.96946909]
[1756886791292,0.00012674,111380.0,111370.0,0.88899455]
[1756886791769,0.00012674,111380.0,111370.0,0.96946909]
[1756886791954,0.00012674,111380.0,111370.0,1.36946909]
[1756886795429,0.00012674,111380.0,111370.0,1.28899455]
[1756886795778,0.00012674,111380.0,111370.0,0.97204326]
[1756886795998,0.00012674,111380.0,111370.0,1.28899455]
[1756886800618,0.31715129,111400.0,111390.0,0.20048815]
[1756886800819,0.31715129,111400.0,111390.0,0.44292414]
[1756886800820,0.00024673,111400.0,111390.0,0.44292414]
[1756886800953,0.00222673,111400.0,111390.0,0.44292414]
[1756886801772,0.00222673,111400.0,111390.0,0.44492414]
[1756886801980,0.00024673,111400.0,111390.0,0.76892543]
[1756886802679,0.00024673,111400.0,111390.0,0.79590874]
[1756886806881,0.00024673,111400.0,111390.0,0.64538874]
[1756886807071,0.00222673,111400.0,111390.0,0.47382745]
[1756886807517,0.00222673,111400.0,111390.0,0.32338745]
[1756886807727,0.00222673,111400.0,111390.0,0.47390745]
[1756886808124,0.00222673,111400.0,111390.0,0.32338745]
[1756886808356,0.00222673,111400.0,111390.0,0.47390745]
[1756886809084,0.00222673,111400.0,111390.0,0.47895745]
[1756886809760,0.00222673,111400.0,111390.0,0.32843745]
[1756886809961,0.00222673,111400.0,111390.0,0.47691745]
[1756886810140,0.00222673,111400.0,111390.0,0.32643745]
[1756886810387,0.31917802,111400.0,111390.0,0.47386745]
[1756886811225,0.00222673,111400.0,111390.0,0.47386745]
[1756886811654,0.00222673,111400.0,111390.0,0.32643745]
[1756886811877,0.00222673,111400.0,111390.0,0.47386745]
[1756886812420,0.31917802,111400.0,111390.0,0.42643745]
[1756886812826,0.63612931,111400.0,111390.0,0.42338745]
[1756886813044,0.63839931,111400.0,111390.0,0.54684414]
[1756886813245,0.32144802,111400.0,111390.0,0.54684414]
[1756886813783,0.00449673,111400.0,111390.0,0.54684414]
[1756886814105,0.31917802,111400.0,111390.0,0.54684414]
[1756886814310,0.31917802,111400.0,111390.0,0.39640414]
[1756886814515,0.63612931,111400.0,111390.0,0.54684414]
[1756886814718,0.63839931,111400.0,111390.0,0.39640414]
[1756886814927,0.63839931,111400.0,111390.0,0.54680414]
[1756886817063,0.63839931,111400.0,111390.0,0.39640414]
[1756886817510,0.63839931,111400.0,111390.0,0.54680414]
[1756886818320,0.63839931,111400.0,111390.0,0.54676414]
[1756886818734,0.63839931,111400.0,111390.0,0.39640414]
[1756886818934,0.63839931,111400.0,111390.0,0.54676414]
[1756886819443,0.63612931,111400.0,111390.0,0.54676414]
[1756886820187,0.63612931,111400.0,111390.0,0.54981414]
[1756886820402,0.63612931,111400.0,111390.0,0.55181414]
[1756886820530,0.63612931,111400.0,111390.0,0.54977414]
[1756886820754,0.63612931,111400.0,111390.0,0.104]
[1756886820755,1.47488381,111400.0,111390.0,0.104]
[1756886821594,1.50187422,111400.0,111390.0,0.104]
[1756886821822,1.50187422,111400.0,111390.0,0.1]
[1756886822236,1.59379021,111400.0,111390.0,0.101]
[1756886822440,1.59379021,111400.0,111390.0,0.1]
[1756886822642,2.69500408,111400.0,111390.0,0.101]
[1756886823959,2.69500408,111400.0,111390.0,0.1]
[1756886824638,2.61513082,111400.0,111390.0,0.1]
[1756886825061,2.61713082,111400.0,111390.0,0.1]
[1756886825486,2.61913082,111400.0,111390.0,0.1]
[1756886825694,2.61713082,111400.0,111390.0,0.1]
[1756886826114,2.62013082,111400.0,111390.0,0.1]
[1756886826331,3.05703082,111400.0,111390.0,0.1]
[1756886828429,3.14894681,111400.0,111390.0,0.1]
[1756886828632,1.08260961,111400.0,111390.0,0.1]
[1756886828837,2.98431735,111400.0,111390.0,0.1]
[1756886829059,3.13471735,111400.0,111390.0,0.1]
[1756886830188,2.98431735,111400.0,111390.0,0.1]
[1756886830393,3.13471735,111400.0,111390.0,0.1]
[1756886830813,3.22663334,111400.0,111390.0,0.1]
[1756886831465,2.78973334,111400.0,111390.0,0.1]
[1756886834413,2.92452634,111400.0,111390.0,0.1]
[1756886834628,2.92452634,111400.0,111360.0,0.00305]
[1756886834629,0.17958157,111370.0,111360.0,0.00305]
[1756886834846,1.47043544,111370.0,111360.0,0.02398882]
[1756886835054,1.47089544,111370.0,111360.0,0.02398882]
[1756886835259,1.4978924,111370.0,111360.0,0.02398882]
[1756886835671,1.58980839,111370.0,111360.0,0.00305]
[1756886835823,0.5195977,111360.0,111350.0,0.02398882]
[1756886836004,1.47045157,111360.0,111350.0,0.02398882]
[1756886836199,1.47045157,111360.0,111350.0,0.02598882]
[1756886837041,1.47045157,111360.0,111350.0,0.02603555]
[1756886837861,1.47940689,111360.0,111350.0,0.02603555]
[1756886838042,1.47940689,111360.0,111350.0,0.02803555]
[1756886838396,1.47940689,111360.0,111350.0,0.02603555]
[1756886838806,1.47940689,111360.0,111350.0,0.02803555]
[1756886839049,1.47940689,111360.0,111350.0,0.02703555]
[1756886839414,1.47940689,111360.0,111350.0,0.02803555]
[1756886843222,1.1624556,111360.0,111350.0,0.02803555]
[1756886844418,1.1624556,111360.0,111350.0,0.52803555]
[1756886845021,1.18945404,111360.0,111350.0,0.52803555]
[1756886846920,1.18991404,111360.0,111350.0,0.52803555]
[1756886847330,1.18945404,111360.0,111350.0,0.52803555]
[1756886851274,1.18945404,111360.0,111350.0,0.67831555]
[1756886851476,1.40177658,111360.0,111350.0,0.67831555]
[1756886851669,1.40177658,111360.0,111350.0,0.52803555]
[1756886851891,1.40177658,111360.0,111350.0,0.67831555]
[1756886852809,0.97866402,111360.0,111350.0,0.67831555]
[1756886854578,0.55555146,111360.0,111350.0,0.67831555]
[1756886854802,0.4369,111370.0,111360.0,0.20053652]
[1756886855009,0.86001256,111370.0,111360.0,0.20558652]
[1756886855455,0.18855744,111380.0,111370.0,0.17958157]
[1756886855456,0.00883002,111380.0,111370.0,0.17958157]
[1756886855656,0.03582498,111380.0,111370.0,0.40047633]
[1756886855855,0.03582498,111380.0,111370.0,0.39823157]
[1756886855856,0.00883002,111380.0,111370.0,0.39823157]
[1756886856643,0.01083002,111380.0,111370.0,0.39823157]
[1756886857616,0.01183002,111380.0,111370.0,0.39823157]
[1756886858235,0.01083002,111380.0,111370.0,0.39823157]
[1756886858733,0.002,111380.0,111370.0,0.39823157]
[1756886859135,0.5645186,111390.0,111380.0,0.20050427]
[1756886859356,0.5645186,111390.0,111380.0,0.20542427]
[1756886859566,0.37596536,111390.0,111380.0,0.20542427]
[1756886859959,0.55551469,111390.0,111380.0,0.20542427]
[1756886860231,0.95209523,111390.0,111380.0,0.02585882]
[1756886860395,0.95409523,111390.0,111380.0,0.17617882]
[1756886860595,0.95363523,111390.0,111380.0,0.17617882]
[1756886860804,0.95463523,111390.0,111380.0,0.17617882]
[1756886861008,0.95463523,111390.0,111380.0,0.35574427]
[1756886861211,0.35197334,111390.0,111380.0,0.35574427]
[1756886861655,0.003,111390.0,111380.0,0.35574427]
[1756886862294,0.002,111390.0,111380.0,0.35574427]
[1756886862699,0.79916444,111400.0,111390.0,0.20040365]
[1756886862911,0.37605188,111400.0,111390.0,0.20532365]
[1756886863114,0.34905986,111400.0,111390.0,0.20532365]
[1756886863922,0.34952699,111400.0,111390.0,0.20532365]
[1756886864154,0.35152699,111400.0,111390.0,0.20532365]
[1756886864394,0.34952699,111400.0,111390.0,0.70532365]
[1756886864947,0.34952699,111400.0,111390.0,0.70632365]
[1756886865770,0.34952699,111400.0,111390.0,0.70732365]
[1756886868560,0.34952699,111400.0,111390.0,0.85760365]
[1756886870851,0.34952699,111400.0,111390.0,0.85756365]
[1756886872840,0.34952699,111400.0,111390.0,0.85747916]
[1756886873354,0.34952699,111400.0,111390.0,0.70723916]
[1756886873562,0.34952699,111400.0,111390.0,0.85755916]
[1756886874226,0.34998699,111400.0,111390.0,0.70723916]
[1756886874450,0.34998699,111400.0,111390.0,0.85759916]
[1756886875119,0.34952699,111400.0,111390.0,0.85759916]
[1756886875345,0.5290602,111400.0,111390.0,0.70723916]
[1756886875567,0.5295202,111400.0,111390.0,0.85564916]
[1756886875787,0.5295202,111400.0,111390.0,0.70231916]
[1756886876016,0.95263276,111400.0,111390.0,0.52293882]
[1756886876258,0.95263276,111400.0,111390.0,0.85284815]
[1756886876690,0.95263276,111400.0,111390.0,0.85581815]
[1756886876880,0.95263276,111400.0,111390.0,0.85776815]
[1756886877858,0.77309955,111400.0,111390.0,0.85776815]
[1756886878705,0.95263276,111400.0,111390.0,0.85776815]
[1756886879197,0.5295202,111400.0,111390.0,0.85776815]
[1756886879837,0.34952699,111400.0,111390.0,0.85776815]
[1756886880399,0.5295202,111400.0,111390.0,0.85280815]
[1756886880595,0.77309955,111400.0,111390.0,0.85772815]
[1756886881278,0.34952699,111400.0,111390.0,0.85772815]
[1756886881675,0.5295202,111400.0,111390.0,0.85772815]
[1756886881926,0.5295202,111400.0,111390.0,0.85577815]
[1756886882149,0.5295202,111400.0,111390.0,0.85772815]
[1756886882983,0.5295202,111400.0,111390.0,0.85764366]
[1756886883188,0.95263276,111400.0,111390.0,0.85764366]
[1756886883405,0.5295202,111400.0,111390.0,0.85569366]
[1756886883615,0.5295202,111400.0,111390.0,0.85764366]
[1756886884439,0.34952699,111400.0,111390.0,0.85764366]
[1756886887510,0.5290602,111400.0,111390.0,0.85764366]
[1756886888227,0.34952699,111400.0,111390.0,0.85764366]
[1756886888437,0.00046713,111400.0,111390.0,0.85764366]
[1756886888643,0.00046713,111400.0,111390.0,1.28075622]
[1756886888855,0.00046713,111400.0,111390.0,0.85764366]
[1756886889730,0.00046713,111400.0,111390.0,1.28075622]
[1756886889959,0.00046713,111400.0,111390.0,1.39597221]
[1756886890160,1e-08,111400.0,111390.0,2.15908477]
[1756886890387,1e-08,111400.0,111390.0,2.14959495]
[1756886890610,1e-08,111400.0,111390.0,2.31645954]
[1756886890830,1e-08,111400.0,111390.0,2.09310698]
[1756886891057,1e-08,111400.0,111390.0,2.29334698]
[1756886891273,1e-08,111400.0,111390.0,2.24234698]
[1756886891504,1e-08,111400.0,111390.0,2.23171362]
[1756886891729,1e-08,111400.0,111390.0,2.08147362]
[1756886891931,1e-08,111400.0,111390.0,2.23175362]
[1756886892206,1e-08,111400.0,111390.0,2.08147362]
[1756886892403,1e-08,111400.0,111390.0,2.23175362]
[1756886892860,1e-08,111400.0,111390.0,2.23075362]
[1756886893037,1e-08,111400.0,111390.0,2.23775362]
[1756886893339,1e-08,111400.0,111390.0,2.07447362]
[1756886893788,1e-08,111400.0,111390.0,2.17087244]
[1756886894427,1e-08,111400.0,111390.0,1.74775988]
[1756886894640,1e-08,111400.0,111390.0,2.17087244]
[1756886896956,1e-08,111400.0,111390.0,2.17083244]
[1756886897831,1e-08,111400.0,111390.0,1.77083244]
[1756886899537,1e-08,111400.0,111390.0,1.25733244]
[1756886899755,1e-08,111400.0,111390.0,1.40749244]
[1756886903315,1e-08,111400.0,111390.0,1.25733244]
[1756886903530,1e-08,111400.0,111390.0,1.40757244]
[1756886904844,1e-08,111400.0,111390.0,1.38059221]
[1756886906045,1e-08,111400.0,111390.0,0.95747965]
[1756886906249,1e-08,111400.0,111390.0,1.38059221]
[1756886911645,1e-08,111400.0,111390.0,1.59115973]
[1756886912551,1e-08,111400.0,111390.0,1.83915898]
[1756886913288,1e-08,111400.0,111390.0,1.90300016]
[1756886913950,1e-08,111400.0,111390.0,2.23915898]
[1756886914460,1e-08,111400.0,111390.0,2.30300016]
[1756886915107,1e-08,111400.0,111390.0,2.64300016]
[1756886915521,1e-08,111400.0,111390.0,2.57915898]
[1756886916553,1e-08,111400.0,111390.0,2.40561898]
[1756886916777,1e-08,111400.0,111390.0,2.30284936]
[1756886916982,1e-08,111400.0,111390.0,2.6196894]
[1756886917575,1e-08,111400.0,111390.0,2.2196894]
[1756886918243,1e-08,111400.0,111390.0,2.15577898]
[1756886918864,1e-08,111400.0,111390.0,2.55577898]
[1756886919257,1e-08,111400.0,111390.0,2.63625352]
[1756886919903,1e-08,111400.0,111390.0,2.55577898]
[1756886921031,1e-08,111400.0,111390.0,2.63625352]
[1756886922352,0.08418298,111440.0,111430.0,0.20042369]
[1756886922580,0.0846897,111440.0,111430.0,0.35058369]
[1756886923056,0.01114339,111440.0,111430.0,0.35058369]
[1756886924637,0.19061216,111440.0,111430.0,0.35058369]
[1756886924919,0.5074522,111440.0,111430.0,0.35058369]
[1756886925691,0.5074522,111440.0,111430.0,0.20042369]
[1756886925906,0.5074522,111440.0,111430.0,0.35058369]
[1756886926906,0.32798343,111440.0,111430.0,0.35058369]
[1756886927533,0.5074522,111440.0,111430.0,0.35058369]
[1756886930078,0.19061216,111440.0,111430.0,0.35058369]
[1756886930258,0.5074522,111440.0,111430.0,0.35058369]
[1756886933856,0.5071622,111440.0,111430.0,0.35058369]
[1756886935572,0.5071622,111440.0,111430.0,0.17109882]
[1756886936207,0.5071622,111440.0,111430.0,0.35058369]
[1756886938871,0.5071622,111440.0,111430.0,0.02093882]
[1756886939077,0.5071622,111440.0,111430.0,0.17109882]
[1756886939838,0.8474522,111440.0,111430.0,0.17109882]
[1756886940767,0.8471622,111440.0,111430.0,0.17109882]
[1756886940993,0.8471622,111440.0,111430.0,0.35058369]
[1756886942021,0.53032216,111440.0,111430.0,0.35058369]
[1756886942256,0.35085339,111440.0,111430.0,0.35576369]
[1756886942468,0.35039339,111440.0,111430.0,0.35576369]
[1756886942885,0.53032216,111440.0,111430.0,0.35576369]
[1756886943091,0.8471622,111440.0,111430.0,0.35576369]
[1756886944396,0.8467022,111440.0,111430.0,0.35576369]
[1756886944823,0.35039339,111440.0,111430.0,0.35576369]
[1756886947518,0.00149589,111440.0,111430.0,0.35576369]
[1756886947734,0.00149589,111440.0,111430.0,0.67260373]
[1756886949468,0.00149589,111440.0,111430.0,0.20560369]
[1756886949653,0.00149589,111440.0,111430.0,0.67256373]
[1756886955412,0.00149589,111440.0,111430.0,0.35572369]
[1756886955617,0.00149589,111440.0,111430.0,0.67256373]
[1756886956676,0.00149589,111440.0,111430.0,0.35572369]
[1756886956878,0.00149589,111440.0,111430.0,0.67256373]
[1756886958867,0.00149589,111440.0,111430.0,0.35572369]
[1756886959073,0.00149589,111440.0,111430.0,0.67256373]
[1756886965486,0.00149589,111440.0,111430.0,0.69953949]
[1756886971305,0.00149589,111440.0,111430.0,0.38269945]
[1756886971502,0.00149589,111440.0,111430.0,0.69953949]
[1756886972274,0.00149589,111440.0,111430.0,0.38269945]
[1756886972480,0.00149589,111440.0,111430.0,0.69919823]
[1756886973356,0.00149589,111440.0,111430.0,0.38235819]
[1756886974373,0.00141222,111440.0,111430.0,0.38219015]
[1756886974589,0.00141222,111440.0,111430.0,0.38215015]
[1756886977446,0.00141222,111440.0,111430.0,0.44615478]
[1756886977652,0.00141222,111440.0,111430.0,0.29607478]
[1756886977853,0.00141222,111440.0,111430.0,0.44615478]
[1756886978671,0.00141222,111440.0,111430.0,0.868447]
[1756886978897,0.00141222,111440.0,111430.0,0.44615478]
[1756886979107,0.00141222,111440.0,111430.0,0.868447]
[1756886981084,0.00187222,111440.0,111430.0,0.11140991]
[1756886981336,0.42416444,111440.0,111430.0,0.34991033]
[1756886981590,0.60363321,111440.0,111430.0,0.34991033]
[1756886981739,0.18134099,111440.0,111430.0,0.34991033]
[1756886983707,0.94392321,111440.0,111430.0,0.02034546]
[1756886983942,0.51948487,111430.0,111410.0,0.00319]
[1756886984173,0.51948487,111430.0,111400.0,0.25490326]
[1756886984174,0.6017932,111420.0,111400.0,0.25490326]
[1756886984386,0.6017932,111420.0,111410.0,0.15008]
[1756886984593,0.62923787,111420.0,111410.0,0.17101882]
[1756886984803,0.62923787,111420.0,111410.0,0.15008]
[1756886985704,0.62952787,111420.0,111410.0,0.17201882]
[1756886986054,0.62952787,111420.0,111410.0,0.17301882]
[1756886986260,0.62952787,111420.0,111410.0,0.17101882]
[1756886986701,0.20723565,111420.0,111410.0,0.17101882]
[1756886987048,0.62923787,111420.0,111410.0,0.17101882]
[1756886987247,0.63023787,111420.0,111410.0,0.17101882]
[1756886989036,0.62923787,111420.0,111410.0,0.17101882]
[1756886989211,0.62923787,111420.0,111410.0,0.02093882]
[1756886989370,0.63023787,111420.0,111410.0,0.17105882]
[1756886989574,0.63052787,111420.0,111410.0,0.17105882]
[1756886989783,0.62923787,111420.0,111410.0,0.17105882]
[1756886990186,0.63023787,111420.0,111410.0,0.17105882]
[1756886990560,0.63052787,111420.0,111410.0,0.17105882]
[1756886992105,0.63023787,111420.0,111410.0,0.17105882]
[1756886992728,1.06215386,111420.0,111410.0,0.15012]
[1756886992949,1.06244386,111420.0,111410.0,0.15012]
[1756886993492,0.17953321,111400.0,111390.0,0.50319]
[1756886993712,0.60228543,111400.0,111390.0,0.85060815]
[1756886993979,1.02457765,111400.0,111390.0,0.67424882]
[1756886994167,0.62927357,111400.0,111390.0,0.67424882]
[1756886995015,0.62927357,111400.0,111390.0,0.85379815]
[1756886995222,0.62927357,111400.0,111390.0,0.85581815]
[1756886995557,0.62927357,111400.0,111390.0,0.67205882]
[1756886995763,0.62927357,111400.0,111390.0,0.67405882]
[1756886995974,0.96927357,111400.0,111390.0,0.67405882]
[1756886996821,0.96927357,111400.0,111390.0,0.67305882]
[1756886997029,1.39156579,111400.0,111390.0,0.67105882]
[1756886997202,1.40060679,111400.0,111390.0,0.67105882]
[1756886997409,1.40160679,111400.0,111390.0,0.67105882]
[1756886998624,1.40060679,111400.0,111390.0,0.67105882]
[1756886998843,1.40160679,111400.0,111390.0,0.67105882]
[1756886999727,1.40160679,111400.0,111390.0,0.85581815]
[1756886999728,0.97885457,111400.0,111390.0,0.85581815]
[1756887000619,1.41621457,111400.0,111390.0,0.67626882]
[1756887000816,1.41621457,111400.0,111390.0,0.67424882]
[1756887001228,1.41621457,111400.0,111390.0,0.67626882]
[1756887002241,1.41575457,111400.0,111390.0,0.67626882]
[1756887003374,1.41575457,111400.0,111390.0,0.5]
[1756887003375,1.93071278,111400.0,111390.0,0.5]
[1756887003570,1.93042278,111400.0,111390.0,0.5]
[1756887003773,1.93071278,111400.0,111390.0,0.5]
[1756887005467,1.93042278,111400.0,111390.0,0.5]
[1756887006899,2.08058278,111400.0,111390.0,0.5]
[1756887010650,1.65829056,111400.0,111390.0,0.50306]
[1756887010856,1.65829056,111400.0,111390.0,0.5]
[1756887012293,2.08058278,111400.0,111390.0,0.5]
[1756887013982,1.93042278,111400.0,111390.0,0.50306]
[1756887014219,2.08066278,111400.0,111390.0,0.50306]
[1756887014422,2.08066278,111400.0,111390.0,0.5]
[1756887014844,1.93042278,111400.0,111390.0,0.5]
[1756887015047,2.08066278,111400.0,111390.0,0.50306]
[1756887015386,1.66309867,111400.0,111390.0,0.50306]
[1756887016736,1.66309867,111400.0,111390.0,0.5]
[1756887017189,1.66310345,111400.0,111390.0,0.5]
[1756887017540,1.24081123,111400.0,111390.0,0.5]
[1756887017758,1.66310345,111400.0,111390.0,0.5]
[1756887024250,1.66941103,111400.0,111390.0,0.5]
[1756887026257,1.71941103,111400.0,111390.0,0.5]
[1756887026462,1.74358687,111400.0,111390.0,0.5]
[1756887030263,1.59334687,111400.0,111390.0,0.5]
[1756887030490,1.74350687,111400.0,111390.0,0.5]
[1756887030697,1.59334687,111400.0,111390.0,0.5]
[1756887030903,1.59288687,111400.0,111390.0,0.50503]
[1756887031134,1.32075465,111400.0,111390.0,0.50503]
[1756887032015,1.17059465,111400.0,111390.0,0.50503]
[1756887032249,1.74304687,111400.0,111390.0,0.50503]
[1756887032433,1.75989201,111400.0,111390.0,0.50503]
[1756887034774,1.76035201,111400.0,111390.0,0.50306]
[1756887034967,1.76035201,111400.0,111390.0,0.5]
[1756887035628,1.86727607,111400.0,111390.0,0.5]
[1756887035837,1.55010657,111400.0,111390.0,0.5]
[1756887038283,1.62517742,111400.0,111390.0,0.5]
[1756887038496,1.60100158,111400.0,111390.0,0.5]
[1756887041092,1.96121604,111400.0,111390.0,0.5]
[1756887041351,1.96221604,111400.0,111390.0,0.5]
[1756887041538,1.81205604,111400.0,111390.0,0.5]
[1756887041700,1.96121604,111400.0,111390.0,0.5]
[1756887042108,1.96321604,111400.0,111390.0,0.5]
[1756887046506,1.9390402,111400.0,111390.0,0.5]
[1756887047626,1.32933471,111400.0,111390.0,0.50533]
[1756887047963,1.45639801,111400.0,111390.0,0.50533]
[1756887049938,0.65247834,111400.0,111390.0,0.50533]
[1756887050148,0.6026597,111400.0,111390.0,0.68487933]
[1756887050347,0.7528597,111400.0,111390.0,0.50533]
[1756887050755,1.0928597,111400.0,111390.0,0.50533]
[1756887051118,1.0878597,111400.0,111390.0,0.50533]
[1756887051525,1.0928597,111400.0,111390.0,0.50533]
[1756887051692,1.0898597,111400.0,111390.0,0.50533]
[1756887051897,1.0878597,111400.0,111390.0,0.50533]
[1756887052499,1.0888597,111400.0,111390.0,0.50533]
[1756887053168,1.0908597,111400.0,111390.0,0.50533]
[1756887055110,1.0908597,111400.0,111390.0,0.68487933]
[1756887055289,0.9406597,111400.0,111390.0,0.68487933]
[1756887055700,1.0908197,111400.0,111390.0,0.68487933]
[1756887055906,1.0908197,111400.0,111390.0,0.83503933]
[1756887058141,0.7736502,111400.0,111390.0,0.83503933]
[1756887058347,1.0908197,111400.0,111390.0,0.83503933]
[1756887058769,0.7736502,111400.0,111390.0,0.83503933]
[1756887059001,0.91128649,111400.0,111390.0,0.83503933]
[1756887059423,0.59411699,111400.0,111390.0,0.83503933]
[1756887060115,0.44395699,111400.0,111390.0,0.83503933]
[1756887060317,0.76112649,111400.0,111390.0,0.83503933]
[1756887060455,0.44395699,111400.0,111390.0,0.68487933]
[1756887060669,0.76112649,111400.0,111390.0,0.83503933]
[1756887060870,0.75912649,111400.0,111390.0,0.83503933]
[1756887061074,0.75812649,111400.0,111390.0,0.83503933]
[1756887062722,0.90828649,111400.0,111390.0,0.83503933]
[1756887064159,0.59111699,111400.0,111390.0,0.83503933]
[1756887064358,0.90828649,111400.0,111390.0,0.83503933]
[1756887064934,1.0878197,111400.0,111390.0,0.83503933]
[1756887065999,0.7706502,111400.0,111390.0,0.83503933]
[1756887066219,1.0878197,111400.0,111390.0,0.65549]
[1756887067357,1.0878197,111400.0,111390.0,0.83503933]
[1756887067991,0.7706502,111400.0,111390.0,0.83503933]
[1756887068203,1.0878197,111400.0,111390.0,0.83503933]
[1756887070112,0.90828649,111400.0,111390.0,0.83503933]
[1756887070546,1.0878197,111400.0,111390.0,0.83503933]
[1756887070984,0.349041,111400.0,111390.0,0.85597815]
[1756887071237,0.009041,111400.0,111390.0,1.17314765]
[1756887071469,0.64687048,111420.0,111410.0,0.17951709]
[1756887071697,0.73883317,111420.0,111410.0,0.33172709]
[1756887071917,1.07883317,111420.0,111410.0,0.18459709]
[1756887072137,1.07883317,111420.0,111410.0,0.33479709]
[1756887073029,1.08805137,111420.0,111410.0,0.33479709]
[1756887073476,1.40522087,111420.0,111410.0,0.18459709]
[1756887073703,1.40522087,111420.0,111410.0,0.33479709]
[1756887074156,1.40722087,111420.0,111410.0,0.33479709]
[1756887074553,1.40822087,111420.0,111410.0,0.33479709]
[1756887074801,1.84512087,111420.0,111410.0,0.15528]
[1756887075476,1.84558087,111420.0,111410.0,0.15524]
[1756887075686,1.84558087,111420.0,111410.0,0.00508]
[1756887079843,1.21124187,111420.0,111410.0,0.00508]
[1756887080034,1.84558087,111420.0,111410.0,0.00508]
[1756887084804,1.69538087,111420.0,111410.0,0.00508]
[1756887085139,1.84550087,111420.0,111410.0,0.00508]
[1756887086402,1.84550087,111420.0,111410.0,0.00307]
[1756887088059,1.84550087,111420.0,111410.0,0.00508]
[1756887088300,1.69538087,111420.0,111410.0,0.00508]
[1756887088493,1.84550087,111420.0,111410.0,0.00508]
[1756887089713,1.69538087,111420.0,111410.0,0.00508]
[1756887089947,1.84550087,111420.0,111410.0,0.00508]
[1756887093342,1.84550087,111420.0,111410.0,0.00307]
[1756887094699,0.5195238,111410.0,111400.0,0.02093882]
[1756887094923,0.17953321,111400.0,111390.0,0.68261933]
[1756887095160,0.81387221,111400.0,111390.0,0.50508]
[1756887095356,0.49670271,111400.0,111390.0,0.52601882]
[1756887095568,0.7523878,111400.0,111390.0,0.52601882]
[1756887097325,0.57285459,111400.0,111390.0,0.70556815]
[1756887097539,0.42273459,111400.0,111390.0,0.70556815]
[1756887097748,0.42273459,111400.0,111390.0,0.70656815]
[1756887097895,0.42273459,111400.0,111390.0,0.70756815]
[1756887098515,0.76155979,111410.0,111390.0,0.70756815]
[1756887098723,0.42273459,111400.0,111390.0,0.70449815]
[1756887098924,0.84429438,111410.0,111390.0,0.70449815]
[1756887099153,0.17953321,111400.0,111390.0,0.70449815]
[1756887099411,0.17953321,111400.0,111390.0,0.70349815]
[1756887099636,0.84429438,111410.0,111390.0,0.70349815]
[1756887099875,0.17999321,111400.0,111390.0,0.52497882]
[1756887100166,0.17999321,111400.0,111390.0,0.67509882]
[1756887100399,0.17999321,111400.0,111390.0,0.67718882]
[1756887100634,0.6027278,111400.0,111390.0,0.85673815]
[1756887100882,0.7211637,111410.0,111390.0,0.85673815]
[1756887101113,0.8712837,111410.0,111400.0,0.00304]
[1756887101386,1.2112837,111410.0,111400.0,0.00304]
[1756887101579,0.17953321,111400.0,111390.0,0.502]
[1756887101807,0.69464379,111400.0,111390.0,0.50613]
[1756887102014,0.84476379,111400.0,111390.0,0.50613]
[1756887102253,0.84476379,111400.0,111390.0,0.50513]
[1756887102748,0.84476379,111400.0,111390.0,0.50613]
[1756887103194,0.84476379,111400.0,111390.0,0.65625]
[1756887103408,0.84476379,111400.0,111390.0,0.65416]
[1756887103830,1.18476379,111400.0,111390.0,0.65112]
[1756887104405,1.21175581,111400.0,111390.0,0.65416]
[1756887104848,1.21175581,111400.0,111390.0,0.65516]
[1756887106161,1.21175581,111400.0,111390.0,0.50504]
[1756887107118,1.21175581,111400.0,111390.0,0.50404]
[1756887107548,1.21175581,111400.0,111390.0,0.50613]
[1756887107751,1.21175581,111400.0,111390.0,0.50513]
[1756887108325,1.06163581,111400.0,111390.0,0.50513]
[1756887108530,1.06117581,111400.0,111390.0,0.68467933]
[1756887108968,1.21129581,111400.0,111390.0,0.68467933]
[1756887109147,0.78856122,111400.0,111390.0,0.68467933]
[1756887109353,0.78856122,111400.0,111390.0,0.50513]
[1756887109784,0.63844122,111400.0,111390.0,0.50513]
[1756887111844,0.78856122,111400.0,111390.0,0.50513]